[Event "Ostravsky Konik FIDE-A 2024"]
[Site "Ostrava"]
[Date "2024.05.01"]
[Round "5.4"]
[White "Kondys, Piotr"]
[Black "Romanishin, Oleg M"]
[Result "1/2-1/2"]
[ECO "B27"]
[WhiteElo "2048"]
[BlackElo "2372"]
[Annotator "TA"]
[PlyCount "117"]
[EventDate "2024.04.26"]
[EventType "swiss"]
[EventCountry "CZE"]
[SourceTitle "playchess.com"]
[Source "ChessBase"]
[SourceQuality "1"]
[TimeControl "40/5400+30:1800+30"]

{[%evp 13,117,37,43,59,48,36,49,26,53,41,49,39,43,58,75,50,64,24,66,69,61,42,57,66,75,45,61,56,62,70,64,64,112,51,64,91,65,56,58,41,39,58,79,70,73,64,61,-56,0,0,0,0,0,0,0,0,0,0,0,-32,-33,-20,-8,-10,-10,-10,0,0,0,0,0,0,0,0,0,0,0,0,0,0,0,0,0,0,0,0,0,0,0,0,0,-7,-8,-8,-8,-8,-8,-8,-8,-8,0,-8,-8,-8,0,0]} 1. e4 {[%emt 0:00:04]} c5 {[%emt 0:00:25]} 2. Nf3 {[%emt 0:00:12]} g6 {[%emt 0:02:04]} 3. c3 {[%emt 0:00:08]} Bg7 {[%emt 0:03:15]} 4. d4 {[%emt 0:00:58]} Qa5 {[%emt 0:07:09]} 5. Nbd2 {[%emt 1:31:38]} cxd4 {[%emt 0:01:28]} 6. Nb3 {[%emt 0:03:42] B27: Sicilian: 2 Nf3, unusual Black 2nd moves.} Qd8 {[%emt 0:04:17]} 7. cxd4 {[%emt 1:03:21]} d6 {[%emt 0:05:20]} 8. Bd3 {[%emt 0:10:33]} Nc6 {[%emt 0:05:24]} 9. h3 {[%emt 0:02:19]} Nf6 {[%emt 0:01:05]} 10. Be3 {[%emt 0:02:09]} O-O {[%emt 0:01:25]} 11. O-O {[%emt 0:10:30]} Nb4 $146 {[%emt 0:12:53]} ({Predecessor:} 11... Bd7 12. Rc1 a5 13. d5 Nb4 14. Bb1 Ba4 15. Nfd4 Na6 16. Qe2 Bxb3 17. Nxb3 a4 {0-1 Petr,J (2236)-Sokolov,A (2354) CZE-chT1W 2122 2021 (7.6)}) 12. Bb1 {[%emt 0:39:53]} Bd7 {[%emt 0:51:45]} 13. a3 {[%emt 0:00:42]} Na6 {[%emt 0:00:23]} 14. Qe2 {[%emt 0:10:06]} Qb6 {[%emt 0:00:36]} 15. Nfd2 {[%emt 0:28:59]} Ba4 {[%emt 0:16:23]} 16. d5 {[%emt 0:00:58]} Qd8 {[%emt 0:00:14]} 17. Nd4 {[%emt 0:07:01]} Nc5 {[%emt 0:01:03]} 18. b4 {[%emt 0:00:52]} Ncd7 {[%emt 0:00:57]} 19. Bd3 {[%emt 0:20:05]} a6 {[%emt 0:03:52]} 20. f4 {[%emt 0:04:16]} Nb6 {[%emt 0:03:44]} 21. Rac1 {[%emt 0:00:51]} Rc8 {[%emt 0:28:32]} 22. Qf2 {[%emt 0:14:12]} Nfd7 {[%emt 0:01:40]} (22... Rxc1 $14 {was preferrable.} 23. Rxc1 Bd7) 23. N2b3 {[%emt 0:01:21]} (23. N2f3 $16) 23... Bxb3 {[%emt 0:01:36]} 24. Nxb3 {[%emt 0:00:01]} Na4 {[%emt 0:00:08]} 25. Rxc8 {[%emt 0:00:52]} Qxc8 {[%emt 0:00:04]} 26. Rc1 {[%emt 0:00:09]} Qb8 {[%emt 0:25:11]} 27. Ba7 {[%emt 0:00:24]} Qd8 {[%emt 0:09:05]} 28. Na5 {[%emt 0:02:12]} Ndc5 {[%emt 0:04:37]} 29. Bc2 {[%emt 0:01:47]} ({Reject} 29. bxc5 Qxa5 30. cxd6 exd6 $11) 29... Nc3 $1 {[%emt 0:00:47]} 30. Re1 {[%emt 0:10:38]} ({White should play} 30. e5 $1 $14) 30... Nb5 {[%emt 0:00:38]} (30... Qc7 $1 $15 31. e5 Nd7) 31. Bxc5 $11 {[%emt 0:09:40]} dxc5 {[%emt 0:00:07]} 32. e5 $1 {[%emt 0:02:21]} (32. Nxb7 $2 {is the wrong capture.} Qc7 33. e5 (33. Nxc5 $2 {too greedy.} Bd4 $19) 33... Qxb7 $19) 32... cxb4 {[%emt 0:01:26]} 33. axb4 {[%emt 0:05:49]} Qxd5 {[%emt 0:00:11]} 34. Be4 {[%emt 0:00:17]} Qe6 {[%emt 0:10:05]} 35. Nxb7 {[%emt 0:00:02]} Qb3 {[%emt 0:00:41]} 36. Nc5 {[%emt 0:05:41]} Qxb4 {[%emt 0:00:36]} 37. Nxa6 {[%emt 0:00:02]} Qa3 {[%emt 0:02:23]} 38. Qb6 {[%emt 0:00:53]} Nc3 {[%emt 0:01:02]} 39. Qb4 {[%emt 0:04:38]} Qxb4 {[%emt 0:00:40]} 40. Nxb4 {[%emt 0:00:03]} Nxe4 {[%emt 0:01:48]} 41. Rxe4 {[%emt 0:30:02]} Rc8 {[%emt 0:30:39]} 42. Nd5 {[%emt 0:00:00]} Bf8 {[%emt 0:00:00]} 43. e6 {[%emt 0:00:00]} fxe6 {[%emt 0:00:00]} 44. Rxe6 {[%emt 0:04:25]} Kf7 {[%emt 0:00:00]} 45. Re4 {[%emt 0:00:00]} e6 {[%emt 0:00:00]} 46. Ne3 {[%emt 0:00:00]} Rc1+ {[%emt 0:00:00]} 47. Kf2 {[%emt 0:05:55]} Bc5 {[%emt 0:00:00]} 48. Kf3 {[%emt 0:00:00]} h5 {[%emt 0:00:00]} 49. g4 {[%emt 0:00:00]} Rc3 {[%emt 0:00:00]} 50. gxh5 {[%emt 0:07:25]} gxh5 {[%emt 0:00:00]} 51. Re5 {[%emt 0:01:59]} Bd4 {[%emt 0:00:00]} 52. Re4 {[%emt 0:00:01]} Bb6 {[%emt 0:06:16]} 53. Ke2 {[%emt 0:00:59]} Rb3 {[%emt 0:00:00]} 54. Kf3 {[%emt 0:01:27]} Kf6 {[%emt 0:00:00]} 55. Re5 {[%emt 0:00:28]} Ba7 {[%emt 0:00:00]} 56. Re4 {[%emt 0:00:24]} Rb5 {[%emt 0:00:35]} 57. Kg3 {[%emt 0:00:43]} Rb2 {[%emt 0:01:02]} 58. Re5 {[%emt 0:00:38]} Rb4 {[%emt 0:01:49]} (58... Bd4 $5 59. Re4 $8 Ba7 $11) 59. Kf3 {[%emt 0:00:10]} 1/2-1/2

[Event "Ostravsky Konik FIDE-A 2024"]
[Site "Ostrava"]
[Date "2024.05.01"]
[Round "5.5"]
[White "Vesely, Martin"]
[Black "Goluch, Piotr"]
[Result "1/2-1/2"]
[ECO "E94"]
[WhiteElo "2027"]
[BlackElo "2325"]
[Annotator "TA"]
[PlyCount "66"]
[EventDate "2024.04.26"]
[EventType "swiss"]
[EventCountry "CZE"]
[SourceTitle "playchess.com"]
[Source "ChessBase"]
[SourceQuality "1"]
[TimeControl "40/5400+30:1800+30"]

{[%evp 15,66,36,39,33,74,31,83,72,78,47,62,65,68,47,138,144,133,137,131,90,84,83,150,164,221,219,217,149,169,152,193,152,215,212,193,189,159,64,156,114,142,120,150,176,147,33,44,0,0,0,21,0,0]} 1. d4 {[%emt 0:07:26]} Nf6 {[%emt 0:00:04]} 2. Nf3 {[%emt 0:00:02]} g6 {[%emt 0:00:06]} 3. c4 {[%emt 0:00:10]} Bg7 {[%emt 0:00:04]} 4. Nc3 {[%emt 0:00:18]} O-O {[%emt 0:00:06]} 5. e4 {[%emt 0:00:05]} d6 {[%emt 0:00:03]} 6. Be2 {[%emt 0:00:07][%cal Bf1e2,Be2f3,Bf3h5][%mdl 32]} e5 {[%emt 0:00:05]} 7. O-O {[%emt 0:01:19]} Bg4 {[%emt 0:00:04]} 8. d5 {[%emt 0:00:25]} a5 {[%emt 0:00:04]} 9. Bg5 {[%emt 0:02:20]} h6 {[%emt 0:01:24]} 10. Bh4 {[%emt 0:00:27]} Bxf3 {[%emt 0:00:04]} (10... Na6 $14) 11. Bxf3 $16 {[%emt 0:00:11] White is better.} Qe8 {[%emt 0:00:16]} 12. a3 {[%emt 0:03:31]} Na6 {[%emt 0:06:54]} 13. Rb1 {[%emt 0:03:42]} Nh7 {[%emt 0:05:54]} 14. b4 {[%emt 0:06:58] Black is weak on the light squares} f5 {[%emt 0:00:52]} (14... Bf6 $14 15. Bxf6 Nxf6) 15. exf5 {[%emt 0:00:09]} (15. bxa5 $6 f4 $11) 15... gxf5 {[%emt 0:00:04]} 16. Bh5 {[%emt 0:00:37]} Qd7 {[%emt 0:00:12]} 17. Qd3 {[%emt 0:25:26]} (17. bxa5 $6 Nc5 $11) 17... Bf6 {[%emt 0:06:23]} 18. Bxf6 {[%emt 0:08:11]} Rxf6 {[%emt 0:00:05]} (18... Nxf6 $142 19. Bg6 Ne8) 19. f4 $36 {[%emt 0:00:47][%mdl 2048] White is on the roll.} (19. bxa5 Nc5 20. Qd2 Rxa5 $16) 19... e4 {[%emt 0:00:16]} (19... axb4 {was worth a try.} 20. axb4 e4) 20. Qh3 $18 {[%emt 0:00:31] Strongly threatening Nxe4.} Qg7 {[%emt 0:03:08]} 21. Rfe1 {[%emt 0:01:25][%cal Bf1e1,Be1e3,Be3g3][%mdl 32]} (21. bxa5 $6 Nc5 $16) 21... Kh8 {[%emt 0:02:01]} 22. Re3 {[%emt 0:00:50] Hoping for Rg3.} (22. bxa5 $6 Nc5 $11) 22... axb4 {[%emt 0:06:41]} 23. axb4 {[%emt 0:00:36]} c5 {[%emt 0:01:31]} (23... Rff8 $16 24. Ne2 Rg8) 24. dxc6 {[%emt 0:01:10]} bxc6 {[%emt 0:00:05]} 25. Rg3 {[%emt 0:00:09]} Qa7+ {[%emt 0:00:09]} 26. Kf1 {[%emt 0:08:22] Active counter play!} ({White must play} 26. Kh1 $16) 26... Qd4 {[%emt 0:00:16]} (26... Nc7 $1 $14) 27. Bg6 $16 {[%emt 0:02:56]} Qxc4+ {[%emt 1:07:09] [#]} 28. Ne2 $1 {[%emt 0:26:20]} Rg8 {[%emt 0:00:00]} 29. Qxh6 {[%emt 0:00:00][%csl Gg6][%cal Rh6h7]} ({Reject} 29. Bxf5 $6 Rgf8 30. Qg4 Ng5 $11) 29... Rg7 {[%emt 0:00:00][%cal Oa6c7] [#]} 30. Qh5 {[%emt 0:00:00] Chess con chili.} ({White should try} 30. Ra1 $1 $16 {Black must now prevent Qh5.} Nc7 31. Raa3) 30... Qe6 $14 {[%emt 0:00:00][%cal Rg7g6]} 31. Nd4 {[%emt 0:00:00]} Qc4+ {[%emt 0:00:00] The position is equal.} 32. Ne2 {[%emt 0:00:00] Bxh7 is the strong threat.} Qe6 {[%emt 0:00:00][%cal Rg7g6]} 33. Nd4 {[%emt 0:00:00]} Qc4+ {[%emt 0:00:00] Weighted Error Value: White=0.25 (precise) /Black=0.23 (precise) .  Mistake:       	White=2     	Black=6      Inaccurate:     	White=4     	Black=1      OK:         	White=10    	Black=9      Best:        	White=2     	Black=3      Strong:       	White=1     	---} 1/2-1/2

[Event "Ostravsky Konik FIDE-A 2024"]
[Site "Ostrava"]
[Date "2024.05.01"]
[Round "5.6"]
[White "Rudolf, Michal"]
[Black "Fizer, Marek"]
[Result "1/2-1/2"]
[ECO "B42"]
[WhiteElo "2268"]
[BlackElo "2096"]
[Annotator "NA RC"]
[PlyCount "73"]
[EventDate "2024.04.26"]
[EventType "swiss"]
[EventCountry "CZE"]
[SourceTitle "playchess.com"]
[Source "ChessBase"]
[SourceQuality "1"]
[TimeControl "40/5400+30:1800+30"]

1. e4 {[%emt 1:31:00]} c5 {[%emt 1:31:00]} 2. Nf3 {[%emt 0:00:30]} e6 {[%emt 0:00:30]} 3. d4 {[%emt 0:00:30]} cxd4 {[%emt 0:00:30]} 4. Nxd4 {[%emt 0:00:30]} a6 {[%emt 0:00:30]} 5. Bd3 {[%emt 0:00:30]} Bc5 {[%emt 0:00:30]} 6. Nb3 {[%emt 0:00:30]} Ba7 {[%emt 0:00:30]} 7. Qe2 {[%emt 0:00:30]} Nc6 8. Be3 d6 9. O-O {[%emt 0:01:00]} Nf6 {[%emt 0:01:30]} 10. c4 {[%emt 0:00:30]} O-O {[%emt 0:00:30]} 11. Nc3 {[%emt 0:00:30]} Qc7 {[%emt 0:00:30]} 12. Bxa7 {[%emt 0:00:30]} Rxa7 {[%emt 0:00:30]} 13. Rad1 {[%emt 0:00:30]} Nd7 {[%emt 0:00:30]} 14. Qe3 {[%emt 0:00:30]} b6 {[%emt 0:00:30]} 15. Be2 {[%emt 0:00:30]} Nc5 {[%emt 0:00:30]} 16. Rd2 {[%emt 0:00:30]} Qb8 {[%emt 0:00:30]} 17. Rfd1 Rd7 18. Nd4 Bb7 19. Nxc6 Bxc6 20. b4 Na4 21. e5 Nxc3 22. Qxc3 Ba4 23. Rc1 dxe5 24. Rxd7 Bxd7 25. c5 bxc5 26. bxc5 Bc6 27. Bxa6 Qa8 28. Bf1 e4 29. Bc4 Rd8 30. Be2 {[%emt 0:07:00]} Rf8 31. Bc4 Rd8 32. Bf1 Rf8 33. a3 Rb8 34. Rd1 Qa4 35. Qe5 Ra8 36. Qd6 h6 37. Rd4 1/2-1/2

[Event "Ostravsky Konik FIDE-A 2024"]
[Site "Ostrava"]
[Date "2024.05.01"]
[Round "5.7"]
[White "Backiel, Hubert"]
[Black "Zdybel, Przemyslaw"]
[Result "0-1"]
[ECO "B33"]
[WhiteElo "2129"]
[BlackElo "2264"]
[Annotator "TA"]
[PlyCount "96"]
[EventDate "2024.04.26"]
[EventType "swiss"]
[EventCountry "CZE"]
[SourceTitle "playchess.com"]
[Source "ChessBase"]
[SourceQuality "1"]
[TimeControl "40/5400+30:1800+30"]

{[%evp 25,96,28,23,29,16,0,11,9,47,14,69,74,98,102,108,67,105,115,98,8,24,13,0,0,82,-3,-1,-2,0,-22,-17,-24,-26,-14,0,-216,-241,-238,-240,-251,-256,-250,-241,-256,-254,-235,-199,-484,-435,-524,-524,-513,-513,-491,-456,-456,-440,-1549,-1346,-5028,-5028,-5189,-4782,-4952,-4952,-4898,-4898,-4746,-4725,-4685,-4677,-4648,-4316]} 1. e4 {[%emt 1:31:00]} c5 {[%emt 1:31:00]} 2. Nf3 {[%emt 0:00:30]} e6 {[%emt 0:00:30]} 3. d4 {[%emt 0:00:30]} cxd4 4. Nxd4 Nc6 5. Nc3 {[%emt 0:01:00]} Nf6 6. Ndb5 d6 {[%emt 0:02:00]} 7. Bf4 e5 8. Bg5 a6 9. Na3 b5 10. Bxf6 gxf6 11. Nd5 f5 {[%emt 0:02:30]} 12. g3 {[%emt 0:03:30]} fxe4 {[%emt 0:00:30]} 13. Bg2 Bf5 {[%emt 0:00:30]} 14. O-O {[%mdl 1024] White has compensation.} Bg7 15. c3 {[%emt 0:01:30]} O-O {[%emt 0:01:00]} 16. Qe2 {[%emt 0:00:30] The position is equal.} Rc8 {[%emt 0:00:30]} 17. Rad1 {[%emt 0:00:30]} Qg5 {[%emt 0:00:30]} (17... Be6 $11) 18. Ne3 {[%emt 0:00:30] A dynamic duo of knights.} Bg6 19. h4 $1 Qh6 20. Rxd6 {[%emt 0:01:00]} f5 21. Bh3 {[%cal Oe3f5] Strongly threatening Nxf5!} Ne7 22. Nac2 ({White should try} 22. Rxa6 $16 Rcd8 23. Nxb5) 22... Rf6 {[%emt 0:02:30]} (22... Bh5 $6 23. Qd2 Bg6 (23... Rf6 24. Nxf5 Nxf5 25. Qxh6 $16) 24. Rd7 $16 (24. Rxa6 Rcd8 $14)) 23. Rxf6 {[%emt 0:01:30]} Bxf6 {[%emt 0:00:30]} 24. Nb4 {[%emt 0:00:30][%cal Oe2d1]} Rf8 {[%emt 0:00:30]} (24... Kh8 $11 {remains equal.}) 25. Nbd5 {[%emt 0:00:30]} (25. Nxa6 $16 {[%cal Oa6c5] Nc5! is the strong threat.} Bh5 26. Qxb5) 25... Nxd5 $11 {[%emt 0:00:30]} 26. Nxd5 {[%emt 0:00:30]} Bd8 {[%emt 0:00:30]} 27. Qe3 {[%emt 0:00:30]} Qg7 {[%emt 0:00:30]} 28. Qc5 {[%emt 0:00:30]} f4 {[%emt 0:00:30]} 29. Kh2 $1 {[%emt 0:00:30]} Kh8 {[%emt 0:00:30]} (29... e3 {feels hotter.} 30. gxf4 exf2 31. f5 Bxf5 32. Qxf2 Bxh3 33. Qxf8+ Qxf8 34. Rxf8+ Kxf8 35. Kxh3 Kf7) 30. Qd6 $2 {[%emt 0:00:30] [#] Black continues to play with concentration.} (30. Rg1 $11 {and White is okay.}) 30... e3 $1 $19 {[%emt 0:00:30][%mdl 512]} 31. fxe3 {[%emt 0:00:30] [#]} (31. gxf4 $2 {perishes.} e2 32. Re1 Bh5 $19 (32... Bxh4 33. Rxe2 Bh5 34. Qxe5 $17)) 31... Bd3 $1 {[%emt 0:00:30][%csl LRf1,LRg3]} ({And not} 31... fxg3+ 32. Kg1 Re8 33. Bd7 $11 (33. Qxa6 $2 {too greedy.} Bd3 $19)) 32. exf4 {[%emt 0:00:30]} Bxf1 {[%emt 0:00:30]} 33. Bxf1 {[%emt 0:00:30]} exf4 {[%emt 0:00:30]} 34. Nxf4 {[%emt 0:00:30][%cal Of4e6]} Bc7 $40 {[%emt 0:00:30][%mdl 128] Black attacks with force.} 35. Qd2 {[%emt 0:00:30]} Qf6 {[%emt 0:00:30]} 36. Kh3 {[%emt 0:00:30]} (36. Bg2 {might work better.}) 36... Qf5+ {[%emt 0:00:30] Black is clearly winning.} 37. Kh2 {[%emt 0:00:30]} Bxf4 {[%emt 0:00:30]} 38. gxf4 {[%emt 0:00:30]} Qxf4+ {[%emt 0:00:30]} 39. Qxf4 {[%emt 0:00:30]} Rxf4 {[%emt 0:00:30][%mdl 4096] Endgame. KR-KB} 40. Kg2 {[%emt 0:00:30]} Rxh4 {[%emt 0:00:30]} 41. b4 {[%emt 0:30:30]} (41. Kg3 $142 Re4 42. Kf2) 41... Kg7 {[%emt 0:30:30] Threatens to win with ...Rh6.} 42. Kg3 {[%emt 0:00:30]} Rh1 {[%emt 0:00:30]} 43. Kg2 {[%emt 0:00:30]} Rh6 {[%emt 0:00:30] White must now prevent ...Rc6.} 44. c4 {[%emt 0:00:30]} bxc4 {[%emt 0:00:30]} 45. Bxc4 {[%emt 0:00:30]} Rh4 {[%emt 0:00:30]} 46. Bxa6 {[%emt 0:00:30]} Rxb4 {[%emt 0:00:30]} 47. Kg3 {[%emt 0:00:30]} Ra4 {[%emt 0:00:30][%csl LRa2,LRa6]} 48. Bb5 {[%emt 0:00:30]} Rxa2 {[%emt 0:00:30] Weighted Error Value: White=0.75/Black=0.28 (precise) .  Loses game:     	White=1     	---        Mistake:       	White=4     	Black=2      Inaccurate:     	White=2     	Black=2      OK:         	White=5     	Black=8      Best:        	White=1     	Black=2      Strong:       	White=2     	Black=1      Brilliant:      	---       	Black=1} 0-1

[Event "Ostravsky Konik FIDE-A 2024"]
[Site "Ostrava"]
[Date "2024.05.02"]
[Round "6.1"]
[White "Swicarz, Maciej"]
[Black "Nguyen, Piotr"]
[Result "0-1"]
[ECO "B06"]
[WhiteElo "2251"]
[BlackElo "2398"]
[Annotator "TA"]
[PlyCount "122"]
[EventDate "2024.04.26"]
[EventType "swiss"]
[EventCountry "CZE"]
[SourceTitle "playchess.com"]
[Source "ChessBase"]
[SourceQuality "1"]
[TimeControl "40/5400+30:1800+30"]

{[%evp 25,122,28,17,16,19,-68,-50,-54,16,-24,0,0,0,0,97,90,86,103,89,107,93,68,157,147,208,191,198,143,175,102,74,108,77,47,58,23,31,0,0,0,0,0,0,0,71,83,83,0,0,0,-13,-81,-91,-80,-80,-81,-82,-74,-75,-74,-73,-106,-58,-82,-75,-69,-25,-67,0,-143,-152,-172,-171,-153,-168,-190,-186,-179,-177,-340,-340,-740,-733,-713,-595,-4727,-4133,-12809,-12818,-8868,-10380,-29969,-29971,-29969,-29968,-29967,-29968,-29952,-5956]} 1. e4 {[%emt 0:00:06]} g6 {[%emt 0:00:20]} 2. d4 {[%emt 0:00:36]} d6 {[%emt 0:00:12]} 3. Nc3 {[%emt 0:00:20]} Bg7 {[%emt 0:00:08]} 4. Be3 {[%emt 0:00:40]} a6 {[%emt 0:00:08]} 5. h4 {[%emt 0:00:47]} h5 {[%emt 0:00:21]} 6. Nf3 {[%emt 0:01:46] B06: Modern Defence.} Nf6 {[%emt 0:02:12]} 7. Ng5 {[%emt 0:01:20]} Ng4 {[%emt 0:04:42]} 8. Bf4 {[%emt 0:03:15]} f6 {[%emt 0:12:43]} 9. Nh3 {[%emt 0:02:53]} e5 $146 {[%emt 0:01:36]} ({Predecessor:} 9... Nc6 10. f3 Nh6 11. Qd2 e5 12. dxe5 dxe5 13. Bxh6 Rxh6 14. Qxd8+ Nxd8 15. Nd5 Ne6 {1-0 Maslova,P (1761)-Makeeva,T (1950) Privolzhskogo FO-ch (Women) 2012 (6)}) 10. dxe5 {[%emt 0:01:52]} dxe5 {[%emt 0:00:19]} 11. Qxd8+ {[%emt 0:00:14]} Kxd8 {[%emt 0:00:06]} 12. Rd1+ {[%emt 0:00:53]} Nd7 {[%emt 0:01:22]} 13. Bc1 {[%emt 0:00:14]} c6 {[%emt 0:03:41]} 14. Bc4 {[%emt 0:06:45]} (14. f3 $5 Nh6 $8 15. Be3 $11) 14... Kc7 {[%emt 0:01:47]} 15. f4 {[%emt 0:04:32]} (15. f3 $11 Nh6 16. a3) 15... Bh6 {[%emt 0:10:38]} 16. Bf7 {[%emt 0:19:08]} exf4 {[%emt 0:14:52]} (16... Nf8 $1 $15) 17. Bxg6 {[%emt 0:03:08]} f3 {[%emt 0:06:48]} 18. gxf3 {[%emt 0:02:15]} (18. Bxh5 $2 fxg2 19. Rg1 Ne3 $19) 18... Bxc1 {[%emt 0:05:02]} 19. Rxc1 {[%emt 0:00:38]} Nge5 {[%emt 0:00:07]} (19... Nde5 $1 $11) 20. Nf4 $16 {[%emt 0:01:49]} Nxf3+ {[%emt 0:01:25]} 21. Kf2 {[%emt 0:01:43]} Nde5 {[%emt 0:01:30]} 22. Bxh5 {[%emt 0:01:23]} Nd4 {[%emt 0:00:09]} 23. Nce2 {[%emt 0:02:43]} (23. Rcg1 {feels hotter.} Bd7 24. Rg7 Nxc2 25. Bd1) 23... Nxe2 {[%emt 0:02:22]} (23... Rxh5 $14 24. Nxd4 (24. Nxh5 Nxe2 25. Rcf1 Nd4 $11) 24... Rh7) 24. Bxe2 $16 {[%emt 0:00:23]} f5 {[%emt 0:01:06]} (24... Bd7 $16 25. h5 Rh7) 25. Rcg1 {[%emt 0:02:53]} fxe4 {[%emt 0:00:56]} 26. Rg7+ {[%emt 0:00:29]} (26. h5 $18) 26... Kb6 {[%emt 0:00:27]} 27. Re7 {[%emt 0:07:23]} (27. h5 $18) 27... Ng4+ $16 {[%emt 0:01:45]} 28. Bxg4 $1 {[%emt 0:00:42]} Bxg4 {[%emt 0:00:05]} 29. Rxe4 {[%emt 0:00:22]} (29. h5 {keeps more tension.} Raf8 30. Ke3 Rh6 31. Rg7) 29... Bf5 {[%emt 0:03:51]} 30. Rb4+ {[%emt 0:00:10]} Kc7 {[%emt 0:00:24]} 31. c3 {[%emt 0:05:07]} Raf8 {[%emt 0:01:01]} 32. Ke3 {[%emt 0:03:59]} Rf7 {[%emt 0:02:24]} 33. Nd3 {[%emt 0:02:45]} Rg8 {[%emt 0:11:55]} 34. Nc5 {[%emt 0:03:30]} Bc8 {[%emt 0:04:19]} (34... b6 $11 35. Nxa6+ Kb7 36. Nc5+ Ka8 37. Ra4+ (37. Rxb6 Re7+ 38. Kf3 Bg4+ 39. Kf4 Rf8+ 40. Kxg4 Rg7+ 41. Kh3 Rf3+ 42. Kh2 Rf2+ 43. Kh3 Rf3+ 44. Kh2 Rf4 $11) 37... Kb8) 35. Rf4 $16 {[%emt 0:00:30]} Re7+ {[%emt 0:03:22]} 36. Kf2 {[%emt 0:01:07]} ({White should play} 36. Ne4 $16) 36... Rge8 $11 {[%emt 0:00:39]} 37. Kg3 {[%emt 0:06:45]} b6 {[%emt 0:01:36]} 38. Nd3 {[%emt 0:02:49]} (38. Nb3 $11) 38... Re3+ $17 {[%emt 0:00:48]} 39. Rf3 {[%emt 0:00:24] [#]} c5 $1 {[%emt 0:00:17]} 40. Nxc5 {[%emt 0:10:33]} Rg8+ {[%emt 0:01:33]} (40... bxc5 41. Rxe3 Rxe3+ 42. Kf4 $19) 41. Kf2 {[%emt 0:30:46]} Rxf3+ {[%emt 0:30:05]} 42. Kxf3 {[%emt 0:00:28]} bxc5 {[%emt 0:00:04]} 43. Rh2 {[%emt 0:00:32]} Kd6 {[%emt 0:00:00]} ({Black should try} 43... Bg4+ $17 44. Ke4 Rh8) 44. Kf4 {[%emt 0:00:00]} Rg4+ {[%emt 0:00:00]} 45. Kf3 {[%emt 0:00:00]} Ke5 {[%emt 0:00:00]} 46. Re2+ {[%emt 0:00:00]} Kd6 {[%emt 0:00:00]} ({Better is} 46... Kf5 $15 47. Re7 Rxh4) 47. Re8 {[%emt 0:00:00]} (47. Rh2 $1 $11 {remains equal.}) 47... Bd7 $17 {[%emt 0:00:00]} 48. Rh8 {[%emt 0:00:00]} Rg1 {[%emt 0:00:00]} 49. h5 {[%emt 0:00:00] [#]} Rb1 $1 {[%emt 0:00:00]} 50. b3 {[%emt 0:00:00]} Rc1 {[%emt 0:00:00]} 51. c4 {[%emt 0:00:00]} Rc2 {[%emt 0:00:00]} 52. h6 $2 {[%emt 0:00:00]} (52. Rh6+ Be6 53. Rh7) 52... Rxa2 $19 {[%emt 0:00:00]} 53. h7 $2 {[%emt 0:00:00]} (53. Kg3 Ra1 54. Kf4) 53... Rh2 $19 {[%emt 0:00:00]} 54. Kf4 {[%emt 0:00:00]} Rh5 {[%emt 0:00:00]} 55. Ra8 {[%emt 0:04:53]} Rxh7 {[%emt 0:00:00]} 56. Rxa6+ {[%emt 0:00:05]} Bc6 {[%emt 0:00:00]} 57. Ra1 {[%emt 0:03:25]} Rf7+ {[%emt 0:00:00]} 58. Kg4 {[%emt 0:00:00]} Ke5 {[%emt 0:00:00]} 59. Ra6 {[%emt 0:00:22]} Bf3+ {[%emt 0:01:36]} 60. Kg3 {[%emt 0:01:08]} Be4 {[%emt 0:01:50]} 61. Rb6 {[%emt 0:00:00]} Rb7 {[%emt 0:00:16]} (61... Rg7+ $142 62. Kf2 Rb7 63. Ra6 Rxb3 64. Rh6 Kd4 65. Rh4 Rf3+ 66. Ke2 Rc3 67. Kf2 Rc2+ (67... Rxc4 $2 68. Kg3 $19) 68. Kg3 Rxc4 69. Rh8 Rc3+ 70. Kg4 c4 71. Rd8+ Bd5 72. Rb8 Rb3 73. Rh8 c3 74. Kf5 c2 75. Rc8 Rc3 76. Rxc3 Kxc3 77. Kg5 c1=Q+ (77... c1=B+ {gets mated.} 78. Kg6 Bc4 79. Kg7 Kd4 80. Kf6 Kd5 81. Kf7 Bd3 82. Kf8 Ke6 83. Ke8 Bg6+ 84. Kd8 Kd6 85. Kc8 Kc6 86. Kd8 Bg5+ 87. Kc8 Bf5+ 88. Kb8 Be3 89. Ka8 Kb6 90. Kb8 Bf4+ 91. Ka8 Be4#) 78. Kf5 Kd4 79. Kf6 Qh6+ 80. Ke7 Qe6+ 81. Kd8 Qd6+ 82. Ke8 Qc7 83. Kf8 Qf7#) 0-1